lending/lending_fUSD_20260209
["ID","MTS","AMOUNT","RATE_DAILY","PERIOD"]
[404851056,1770619832190,-215.87167713,0.00038913,120]
[404851057,1770619832200,-1697.882,0.00038953,53]
[404851058,1770619832209,-179.583,0.00038953,53]
[404851059,1770619832218,-2545.26,0.00039003,2]
[404851060,1770619832227,-2500.0,0.000396,2]
[404851061,1770619832236,-2091.73943464,0.00039601,2]
[404851062,1770619832246,-1543.49146833,0.00039659,2]
[404851063,1770619832255,-148.60383707,0.00039659,2]
[404851064,1770619832266,-96.24121509,0.00039659,2]
[404851065,1770619832275,-356.79991706,0.00039699,15]
[404851066,1770619832284,-500.0,0.00039699,15]
[404851067,1770619832293,-500.0,0.00039699,15]
[404851068,1770619832302,-500.0,0.00039699,15]
[404851069,1770619832311,-500.0,0.00039699,15]
[404851070,1770619832320,-500.0,0.00039699,15]
[404851071,1770619832330,-500.0,0.00039699,15]
[404851072,1770619832339,-500.0,0.00039699,15]
[404851073,1770619832348,-604.21182232,0.00039699,15]
[404851074,1770619832357,-500.0,0.00039699,15]
[404851075,1770619832368,-500.0,0.00039699,15]
[404851076,1770619832377,-500.0,0.00039699,15]
[404851077,1770619832386,-500.0,0.00039699,15]
[404851078,1770619832395,-500.0,0.00039699,15]
[404851079,1770619832405,-500.0,0.00039699,15]
[404851080,1770619832414,-500.0,0.00039699,15]
[404851081,1770619832424,-500.0,0.00039699,15]
[404851082,1770619832434,-500.0,0.00039699,15]
[404851083,1770619832443,-500.0,0.00039699,15]
[404851084,1770619832452,-500.0,0.00039699,15]
[404851085,1770619832462,-500.0,0.00039699,15]
[404851086,1770619832471,-500.0,0.00039699,15]
[404851088,1770619832481,-298.64429041,0.00039699,15]
[404851090,1770619832490,-500.0,0.00039699,15]
[404851092,1770619832499,-500.0,0.00039699,15]
[404851093,1770619832508,-455.52046117,0.00039699,15]
[404851095,1770619832517,-458.4691635,0.00039699,15]
[404851097,1770619832526,-242.74589327,0.00039699,15]
[404851099,1770619832536,-436.1830836,0.00039699,15]
[404851101,1770619832544,-266.38321059,0.00039699,15]
[404851103,1770619832553,-109490.53905928,0.000397,2]
[404851106,1770619832567,-1581.17296328,0.000397,2]
[404851108,1770619832580,-1688.52199259,0.000397,2]
[404851110,1770619832590,-729.51283028,0.000397,2]
[404851112,1770619832601,-605.71259571,0.000397,2]
[404851115,1770619832620,-515.78069607,0.000397,2]
[404851118,1770619832634,-259.39015822,0.000397,2]
[404851120,1770619832645,-972.66991975,0.000397,2]
[404851122,1770619832656,-1180.85990768,0.000397,2]
[404851166,1770619838498,-340.7948031,0.000397,2]
[404851167,1770619838560,-4282.22884414,0.000397,2]
[404851312,1770619844266,-264.23151949,0.000397,2]
[404851313,1770619845329,-39118.20338279,0.000397,2]
[404851318,1770619846234,-11390.62499368,0.000397,2]
[404851319,1770619846294,-7059.69999999,0.000397,2]
[404851320,1770619846412,-1627.71118667,0.000397,2]
[404851321,1770619846590,-328.90874001,0.000397,2]
[404851337,1770620282824,600.0,0.00033143,120]
[404851369,1770620788108,3152.38,0.00035616,30]
[404851370,1770620874899,250.0,0.00015,2]
[404851375,1770621031401,-510.0,0.00032616,2]
[404851376,1770621031411,-226.5,0.00034995,2]
[404851377,1770621031420,-127.2981038,0.00036249,2]
[404851378,1770621031441,-3415.8718962,0.00036249,2]
[404851379,1770621031454,-2000.0,0.000375,2]
[404851380,1770621031464,-1852.42,0.0003777,2]
[404851381,1770621031474,-1000.0,0.0003778,2]
[404851382,1770621031484,-606.91,0.00038334,2]
[404851383,1770621031493,-688.0,0.00038404,4]
[404851384,1770621031503,-606.91,0.00038405,2]
[404851385,1770621031514,-4068.15792488,0.00038405,2]
[404851386,1770621031531,-19514.07804091,0.00038405,2]
[404851387,1770621031543,-230.39403421,0.00038405,2]
[404851388,1770621031552,-311.05,0.00038437,2]
[404851389,1770621031562,-606.91,0.00038476,2]
[404851390,1770621031571,-606.91,0.00038546,2]
[404851391,1770621031581,-606.91,0.00038617,2]
[404851392,1770621031590,-898.52,0.00038672,120]
[404851393,1770621031599,-606.91,0.00038687,2]
[404851394,1770621031608,-151.0,0.0003873,2]
[404851395,1770621031617,-151.0,0.0003873,2]
[404851396,1770621031626,-151.0,0.0003873,2]
[404851397,1770621031635,-151.0,0.0003873,2]
[404851398,1770621031645,-151.0,0.0003873,2]
[404851399,1770621031654,-151.0,0.0003873,2]
[404851400,1770621031664,-151.0,0.0003873,2]
[404851402,1770621031673,-151.0,0.0003873,2]
[404851404,1770621031682,-151.0,0.0003873,2]
[404851406,1770621031692,-151.0,0.0003873,2]
[404851408,1770621031701,-151.0,0.0003873,2]
[404851410,1770621031711,-151.0,0.0003873,2]
[404851412,1770621031720,-151.0,0.0003873,2]
[404851413,1770621031729,-151.0,0.0003873,2]
[404851414,1770621031739,-151.0,0.0003873,2]
[404851415,1770621031748,-151.0,0.0003873,2]
[404851416,1770621031758,-151.0,0.0003873,2]
[404851417,1770621031767,-151.0,0.0003873,2]
[404851418,1770621031777,-151.0,0.0003873,2]
[404851419,1770621031787,-151.0,0.0003873,2]
[404851421,1770621031796,-203.609,0.00038752,2]
[404851423,1770621031806,-151.28011217,0.00038752,20]
[404851425,1770621031815,-655.28797609,0.00038753,2]
[404851430,1770621031852,-344.71202391,0.00038753,2]
[404851432,1770621031862,-431.4450142,0.00038753,2]
[404851435,1770621031873,-303.999998,0.00038753,2]
[404851437,1770621031884,-706.49,0.00038753,2]
[404851438,1770621031895,-299.99,0.00038753,2]
[404851439,1770621031906,-876.3882878,0.00038753,2]
[404851440,1770621031915,-28982.2318,0.00038753,2]
[404851441,1770621031924,-193.15841192,0.00038753,12]
[404851442,1770621031934,-1673.644,0.00038753,52]
[404851443,1770621032166,-175.558,0.00038753,52]
[404851444,1770621032176,-606.91,0.00038758,2]
[404851445,1770621032186,-606.91,0.00038829,2]
[404851446,1770621032195,-1316.12626123,0.00038852,30]
[404851447,1770621032205,-1316.12626123,0.00038852,30]
[404851448,1770621032214,-606.91,0.00038899,2]
[404851449,1770621032224,-2500.0,0.0003894,2]
[404851450,1770621032233,-606.91,0.0003897,2]
[404851451,1770621032242,-199.0,0.00039,30]
[404851452,1770621032252,-3240.0,0.00039006,120]
[404851453,1770621032263,-5000.0,0.00039014,120]
[404851454,1770621032272,-606.91,0.0003904,2]
[404851455,1770621032282,-606.91,0.00039111,2]
[404851456,1770621032295,-606.91,0.00039182,2]
[404851457,1770621032304,-606.91,0.00039252,2]
[404851458,1770621032313,-606.91,0.00039323,2]
[404851459,1770621032323,-606.91,0.00039393,2]
[404851460,1770621032334,-158.35,0.000394,2]
[404851461,1770621032344,-606.91,0.00039464,2]
[404851462,1770621032353,-606.91,0.00039535,2]
[404851463,1770621032363,-2005.0,0.000396,120]
[404851464,1770621032373,-606.91,0.00039605,2]
[404851465,1770621032382,-509.14733964,0.0003966,2]
[404851466,1770621032391,-606.91,0.00039676,2]
[404851467,1770621032401,-9384.4992057,0.000397,2]
[404851468,1770621032410,-2992.3855957,0.000397,2]
[404851469,1770621032420,-24272.38146017,0.000397,2]
[404851470,1770621037768,-5906.3937689,0.000397,2]
[404851471,1770621037780,-540.28211998,0.000397,2]
[404851472,1770621037792,-1080.56521895,0.000397,2]
[404851473,1770621037801,-16.49002105,0.000397,2]
[404851474,1770621037827,-143.19688145,0.000397,2]
[404851475,1770621037836,-192.76311859,0.00039952,2]
[404851476,1770621037852,-105.45688141,0.00039952,2]
[404851477,1770621037862,-1389.14232147,0.0003998,15]
[404851478,1770621037871,-31626.0,0.0004,2]
[404851479,1770621037881,-154.0,0.0004,120]
[404851480,1770621037891,-185.99,0.00040142,2]
[404851481,1770621037900,-1000.0,0.00040447,2]
[404851482,1770621037909,-3256.0,0.00040455,2]
[404851483,1770621037918,-2448.0,0.00040455,2]
[404851484,1770621037927,-412.0,0.00040455,2]
[404851485,1770621037937,-1389.14232141,0.00040464,15]
[404851486,1770621037947,-1000.0,0.00040548,2]
[404851487,1770621037956,-1389.14232141,0.00040949,15]
[404851488,1770621037966,-2000.0,0.000412,2]
[404851489,1770621037975,-154.0,0.000412,120]
[404851490,1770621037984,-1389.14232141,0.00041433,15]
[404851491,1770621037994,-150.0,0.00041538,2]
[404851492,1770621038007,-200.0,0.00041556,2]
[404851493,1770621038017,-959.5,0.00041663,60]
[404851494,1770621038026,-1389.14232141,0.00041918,15]
[404851495,1770621038036,-298.22,0.00041949,2]
[404851496,1770621038047,-154.0,0.000424,120]
[404851497,1770621038056,-1389.14232141,0.00042402,15]
[404851498,1770621038066,-1192.19887583,0.00042616,2]
[404851499,1770621038076,-155.0,0.00042627,120]
[404851500,1770621038086,-2500.0,0.0004274,7]
[404851501,1770621038095,-163.0,0.00042843,16]
[404851502,1770621038105,-141726.66314333,0.00042885,54]
[404851503,1770621038115,-1389.14232141,0.00042887,15]
[404851504,1770621038125,-1010.93960691,0.00042925,15]
[404851505,1770621038135,-500.0,0.00042951,30]
[404851506,1770621038146,-6549.1567755,0.00043,120]
[404851507,1770621038156,-1093.01465936,0.00043025,2]
[404851508,1770621038165,-16894.76367715,0.00043042,30]
[404851509,1770621038179,-769.31118832,0.00043042,30]
[404851510,1770621038192,-2639.65023173,0.00043042,30]
[404851511,1770621038204,-16381.2749028,0.00043042,30]
[404851512,1770621038215,-200.0,0.00043057,2]
[404851513,1770621038225,-1010.93960691,0.00043082,15]
[404851514,1770621038235,-151.0,0.00043167,120]
[404851515,1770621038245,-839.0,0.0004317,16]
[404851516,1770621038255,-1010.93960691,0.00043239,15]
[404851517,1770621038265,-1809.79820965,0.00043252,2]
[404851518,1770621038275,-461.34872196,0.00043316,120]
[404851519,1770621038285,-1000.0,0.00043356,20]
[404851520,1770621038296,-1389.14232141,0.00043371,15]
[404851521,1770621038306,-150.0,0.00043396,2]
[404851522,1770621038316,-1336.0,0.00043396,2]
[404851523,1770621038326,-1412.0,0.00043396,2]
[404851524,1770621038336,-616.0,0.00043396,2]
[404851525,1770621038346,-3485.0,0.00043396,2]
[404851526,1770621038356,-1272.0,0.00043396,2]
[404851527,1770621038366,-918.0,0.00043396,2]
[404851528,1770621038375,-1206.0,0.00043396,2]
[404851529,1770621038384,-1010.93960691,0.00043397,15]
[404851530,1770621038394,-712.20564674,0.000434,120]
[404851531,1770621038403,-3256.0,0.00043455,2]
[404851532,1770621038413,-2448.0,0.00043455,2]
[404851533,1770621038422,-31163.72052441,0.00043486,30]
[404851534,1770621038434,-500.0,0.00043486,30]
[404851535,1770621038445,-1402.02305659,0.00043486,30]
[404851536,1770621038456,-1501.90599879,0.00043486,30]
[404851537,1770621038468,-2117.35042021,0.00043486,30]
[404851538,1770621038478,-898.52,0.00043506,120]
[404851539,1770621038488,-150.0,0.00043507,60]
[404851540,1770621038498,-157.54035197,0.00043507,60]
[404851541,1770621038509,-150.0,0.00043507,60]
[404851542,1770621038519,-150.0,0.00043507,60]
[404851543,1770621038529,-150.31369426,0.00043507,60]
[404851544,1770621038539,-151.02941367,0.00043507,60]
[404851545,1770621038549,-278.2575136,0.00043507,60]
[404851546,1770621038558,-297.34426898,0.00043507,60]
[404851547,1770621038568,-500.0,0.00043507,60]
[404851548,1770621038579,-257.99393271,0.00043507,60]
[404851549,1770621038588,-224.30683848,0.00043507,60]
[404851550,1770621038598,-1010.93960691,0.00043554,15]
[404851551,1770621038608,-150.0,0.00043562,60]
[404851552,1770621038618,-150.0,0.00043562,60]
[404851553,1770621038628,-150.0,0.00043562,60]
[404851554,1770621038637,-500.0,0.00043562,60]
[404851555,1770621038648,-154.0,0.000436,120]
[404851556,1770621038658,-150.0,0.00043617,60]
[404851557,1770621038668,-202.53244982,0.00043617,60]
[404851558,1770621038677,-202.2559413,0.00043617,60]
[404851559,1770621038688,-415.83414246,0.00043617,60]
[404851560,1770621039462,-412.0,0.00043455,2]
[404851561,1770621039472,-84.16585754,0.00043617,60]
[404851562,1770621039481,-1558.81911971,0.00043632,7]
[404851563,1770621039492,-287.226001,0.00043632,7]
[404851564,1770621039791,-4548.95487929,0.00043632,7]
[404851565,1770621039800,-150.0,0.00043671,60]
[404851566,1770621039809,-267.62254994,0.00043671,60]
[404851567,1770621039818,-1010.93960691,0.00043711,15]
[404851568,1770621039828,-200.0,0.00043726,60]
[404851569,1770621039837,-284.2,0.00043746,120]
[404851570,1770621039848,-221.0,0.00043752,2]
[404851571,1770621039858,-501.81401657,0.00043773,3]
[404851572,1770621039868,-109.49416321,0.00043773,10]
[404851573,1770621039879,-390.50583679,0.00043773,10]
[404851574,1770621039889,-506.53246669,0.00043773,10]
[404851575,1770621039898,-502.3410841,0.00043773,10]
[404851576,1770621039907,-508.49853335,0.00043773,10]
[404851578,1770621039916,-503.2007828,0.00043773,10]
[404851580,1770621039925,-500.0,0.00043773,7]
[404851582,1770621039935,-641.00854311,0.00043773,10]
[404851584,1770621039944,-500.95442163,0.00043773,10]
[404851585,1770621039953,-500.0,0.00043773,10]
[404851588,1770621039963,-500.0,0.00043773,10]
[404851589,1770621039972,-500.0,0.00043773,10]
[404851592,1770621039982,-500.0,0.00043773,10]
[404851593,1770621039991,-500.0,0.00043773,10]
[404851595,1770621040000,-503.61284927,0.00043773,10]
[404851597,1770621040013,-487.0,0.00043773,2]
[404851598,1770621040023,-487.0,0.00043773,2]
[404851599,1770621040032,-487.0,0.00043773,2]
[404851600,1770621040041,-487.0,0.00043773,2]
[404851601,1770621040052,-487.0,0.00043773,2]
[404851602,1770621040061,-487.0,0.00043773,2]
[404851603,1770621040070,-487.0,0.00043773,2]
[404851604,1770621040082,-487.0,0.00043773,2]
[404851605,1770621040091,-487.0,0.00043773,2]
[404851606,1770621040100,-487.0,0.00043773,2]
[404851607,1770621040110,-487.0,0.00043773,2]
[404851608,1770621040119,-487.0,0.00043773,2]
[404851609,1770621040128,-487.0,0.00043773,2]
[404851610,1770621040137,-820.6,0.00043773,2]
[404851611,1770621040147,-500.0,0.00043779,31]
[404851612,1770621040156,-500.0,0.00043779,31]
[404851614,1770621040166,-178.24575804,0.00043779,31]
[404851615,1770621040175,-462.16,0.000438,120]
[404851616,1770621040185,-1389.14232141,0.00043856,15]
[404851617,1770621040194,-1010.93960691,0.00043868,15]
[404851618,1770621040204,-1424.21516144,0.000439,2]
[404851619,1770621040214,-36685.0,0.00043929,30]
[404851620,1770621040223,-298.22,0.00043947,2]
[404851621,1770621040232,-500.0,0.00043973,10]
[404851622,1770621040242,-500.0,0.00043973,10]
[404851623,1770621040251,-500.0,0.00043973,10]
[404851624,1770621040260,-500.0,0.00043973,10]
[404851625,1770621040269,-594.32872347,0.00043973,10]
[404851626,1770621040279,-500.0,0.00043973,10]
[404851627,1770621040288,-80816.10852117,0.00044,120]
[404851628,1770621040297,-1010.93960691,0.00044026,15]
[404851629,1770621040306,-267.3,0.00044171,14]
[404851630,1770621040315,-1000.0,0.00044182,120]
[404851631,1770621040325,-256.366,0.00044182,120]
[404851632,1770621040335,-1010.93960691,0.00044183,15]
[404851633,1770621040344,-459.0,0.00044244,2]
[404851634,1770621040354,-154.4684463,0.00044244,2]
[404851635,1770621040363,-10153.6491,0.00044256,2]
[404851636,1770621040372,-237.8504,0.00044256,120]
[404851637,1770621040381,-177.98017706,0.00044256,120]
[404851638,1770621040391,-150.0,0.00044273,10]
[404851639,1770621040400,-177.98017706,0.00044298,120]
[404851640,1770621040409,-150.0,0.000443,29]
[404851641,1770621040419,-1001.34425934,0.00044321,10]
[404851642,1770621040428,-503.50531251,0.00044321,7]
[404851643,1770621040437,-1000.0,0.00044321,10]
[404851644,1770621040450,-500.0,0.00044321,10]
[404851645,1770621040459,-1000.0,0.00044321,10]
[404851646,1770621040468,-1000.0,0.00044321,10]
[404851647,1770621040478,-184.63080056,0.00044321,10]
[404851648,1770621040487,-967.0,0.00044329,120]
[404851649,1770621040496,-1389.14232141,0.0004434,15]
[404851650,1770621040702,-177.98017706,0.0004434,120]
[404851651,1770621040712,-1010.93960691,0.0004434,15]
[404851652,1770621040722,-346.00753206,0.0004434,2]
[404851653,1770621040731,-34094.41413499,0.0004434,2]
[404851654,1770621040740,-290.51885735,0.00044346,7]
[404851655,1770621040750,-1316.12626124,0.00044355,60]
[404851656,1770621040759,-1999.0,0.00044355,120]
[404851657,1770621040769,-300.0,0.00044355,30]
[404851658,1770621040778,-500.2750356,0.00044356,120]
[404851659,1770621040787,-510.0305959,0.00044356,120]
[404851660,1770621040797,-500.0,0.00044356,120]
[404851661,1770621040806,-500.0,0.00044356,120]
[404851662,1770621040815,-338.626055,0.00044356,120]
[404851663,1770621040824,-1301.20561,0.00044356,120]
[404851664,1770621040834,-500.0,0.00044356,120]
[404851665,1770621040843,-500.0,0.00044356,120]
[404851666,1770621040853,-500.0,0.00044356,120]
[404851667,1770621040862,-507.39544656,0.00044356,120]
[404851668,1770621040872,-1147.8,0.00044356,120]
[404851669,1770621040882,-1147.8,0.00044356,120]
[404851670,1770621040891,-1147.8,0.00044356,120]
[404851671,1770621040901,-1147.8,0.00044356,120]
[404851672,1770621040910,-1147.8,0.00044356,120]
[404851673,1770621040919,-1147.8,0.00044356,120]
[404851674,1770621040928,-1147.8,0.00044356,120]
[404851675,1770621040937,-1147.8,0.00044356,120]
[404851676,1770621040946,-500.0,0.00044356,120]
[404851677,1770621040956,-1147.8,0.00044356,120]
[404851678,1770621040966,-500.0,0.00044356,120]
[404851679,1770621040976,-1147.8,0.00044356,120]
[404851680,1770621040986,-500.0,0.00044356,120]
[404851681,1770621040996,-500.0,0.00044356,120]
[404851682,1770621041007,-1147.8,0.00044356,120]
[404851683,1770621041020,-500.0,0.00044356,120]
[404851684,1770621041029,-500.0,0.00044356,120]
[404851685,1770621041039,-1147.8,0.00044356,120]
[404851686,1770621041050,-500.0,0.00044356,120]
[404851687,1770621041059,-1147.8,0.00044356,120]
[404851688,1770621041069,-609.5117641,0.00044356,120]
[404851689,1770621041080,-1147.8,0.00044356,120]
[404851690,1770621041089,-1147.8,0.00044356,120]
[404851691,1770621041099,-1147.8,0.00044356,120]
[404851692,1770621041108,-1147.8,0.00044356,120]
[404851693,1770621041117,-500.0,0.00044356,120]
[404851694,1770621041126,-500.0,0.00044356,120]
[404851695,1770621041136,-500.0,0.00044356,120]
[404851696,1770621041145,-601.96868025,0.00044356,120]
[404851697,1770621041157,-500.0,0.00044356,120]
[404851698,1770621041166,-500.0,0.00044356,120]
[404851699,1770621041176,-258.11659301,0.00044356,120]
[404851700,1770621041185,-500.0,0.00044356,120]
[404851701,1770621041194,-500.0,0.00044356,120]
[404851702,1770621041204,-500.0,0.00044356,120]
[404851703,1770621041213,-500.0,0.00044356,120]
[404851704,1770621041223,-500.0,0.00044356,120]
[404851705,1770621041233,-500.0,0.00044356,120]
[404851706,1770621041243,-500.0,0.00044356,120]
[404851707,1770621041252,-500.0,0.00044356,120]
[404851708,1770621041262,-261.0488314,0.00044356,120]
[404851709,1770621041271,-500.0,0.00044356,120]
[404851710,1770621041281,-530.02443261,0.00044356,120]
[404851711,1770621041291,-527.55668787,0.00044356,120]
[404851712,1770621041301,-204.98331359,0.00044356,120]
[404851713,1770621041311,-507.49087647,0.00044356,120]
[404851714,1770621041320,-500.0,0.00044356,120]
[404851715,1770621041330,-500.0,0.00044356,120]
[404851716,1770621041339,-500.0,0.00044356,120]
[404851717,1770621041349,-517.01555394,0.00044356,120]
[404851718,1770621041358,-500.0,0.00044356,120]
[404851719,1770621041367,-500.0,0.00044356,120]
[404851720,1770621041377,-500.0,0.00044356,120]
[404851721,1770621041386,-500.0,0.00044356,120]
[404851722,1770621041396,-500.0,0.00044356,120]
[404851723,1770621041405,-639.77255091,0.00044356,120]
[404851724,1770621041414,-531.09878726,0.00044356,120]
[404851725,1770621041423,-500.0,0.00044356,120]
[404851726,1770621041433,-500.0,0.00044356,120]
[404851727,1770621041442,-500.0,0.00044356,120]
[404851728,1770621041451,-500.0,0.00044356,120]
[404851729,1770621041460,-500.0,0.00044356,120]
[404851730,1770621041470,-500.0,0.00044356,120]
[404851731,1770621041480,-500.0,0.00044356,120]
[404851732,1770621041490,-500.0,0.00044356,120]
[404851733,1770621041500,-500.0,0.00044356,120]
[404851734,1770621041509,-500.0,0.00044356,120]
[404851735,1770621041519,-500.0,0.00044356,120]
[404851736,1770621041528,-500.0,0.00044356,120]
[404851737,1770621041538,-728.8,0.00044356,120]
[404851738,1770621041547,-500.0,0.00044356,120]
[404851739,1770621041556,-500.0,0.00044356,120]
[404851740,1770621041565,-728.8,0.00044356,120]
[404851741,1770621041574,-500.0,0.00044356,120]
[404851742,1770621041583,-444.26555746,0.00044356,120]
[404851743,1770621041592,-500.0,0.00044356,120]
[404851744,1770621041601,-728.8,0.00044356,120]
[404851745,1770621041611,-500.0,0.00044356,120]
[404851746,1770621041620,-728.8,0.00044356,120]
[404851747,1770621041629,-500.0,0.00044356,120]
[404851748,1770621041638,-728.8,0.00044356,120]
[404851749,1770621041647,-500.0,0.00044356,120]
[404851750,1770621041655,-728.8,0.00044356,120]
[404851751,1770621041664,-500.0,0.00044356,120]
[404851752,1770621041673,-728.8,0.00044356,120]
[404851753,1770621041682,-500.0,0.00044356,120]
[404851754,1770621041691,-728.8,0.00044356,120]
[404851755,1770621041700,-500.0,0.00044356,120]
[404851756,1770621041710,-728.8,0.00044356,120]
[404851757,1770621041719,-500.0,0.00044356,120]
[404851758,1770621041730,-728.8,0.00044356,120]
[404851759,1770621041740,-500.0,0.00044356,120]
[404851760,1770621041749,-728.8,0.00044356,120]
[404851761,1770621041758,-728.8,0.00044356,120]
[404851762,1770621041769,-500.0,0.00044356,120]
[404851763,1770621041779,-728.8,0.00044356,120]
[404851764,1770621041788,-500.0,0.00044356,120]
[404851765,1770621041798,-728.8,0.00044356,120]
[404851766,1770621041808,-512.58792486,0.00044356,120]
[404851767,1770621041817,-728.8,0.00044356,120]
[404851768,1770621041826,-728.8,0.00044356,120]
[404851769,1770621041835,-728.8,0.00044356,120]
[404851770,1770621041845,-500.0,0.00044356,120]
[404851771,1770621041854,-439.73077995,0.00044356,120]
[404851772,1770621041864,-500.0,0.00044356,120]
[404851773,1770621041873,-500.0,0.00044356,120]
[404851774,1770621041882,-500.0,0.00044356,120]
[404851775,1770621041891,-522.53902755,0.00044356,120]
[404851776,1770621041901,-500.38461673,0.00044356,120]
[404851777,1770621041911,-500.0,0.00044356,120]
[404851778,1770621041921,-500.0,0.00044356,120]
[404851779,1770621041930,-500.0,0.00044356,120]
[404851780,1770621041939,-500.0,0.00044356,120]
[404851781,1770621041949,-521.19318208,0.00044356,120]
[404851782,1770621041959,-500.0,0.00044356,120]
[404851783,1770621041968,-500.0,0.00044356,120]
[404851784,1770621041978,-307.34836236,0.00044356,120]
[404851785,1770621041988,-500.0,0.00044356,60]
[404851786,1770621041997,-500.0,0.00044356,60]
[404851787,1770621042014,-500.0,0.00044356,120]
[404851788,1770621042023,-500.0,0.00044356,60]
[404851789,1770621042033,-500.0,0.00044356,120]
[404851790,1770621042042,-500.0,0.00044356,60]
[404851791,1770621042053,-500.0,0.00044356,120]
[404851792,1770621042063,-500.0,0.00044356,60]
[404851793,1770621042074,-500.0,0.00044356,120]
[404851794,1770621042084,-500.0,0.00044356,60]
[404851795,1770621042094,-500.0,0.00044356,120]
[404851796,1770621042103,-500.0,0.00044356,120]
[404851797,1770621042112,-500.0,0.00044356,120]
[404851798,1770621042120,-500.0,0.00044356,120]
[404851799,1770621042130,-326.79271776,0.00044356,60]
[404851800,1770621042139,-500.0,0.00044356,120]
[404851801,1770621042148,-500.0,0.00044356,120]
[404851802,1770621042157,-500.0,0.00044356,120]
[404851803,1770621042167,-500.0,0.00044356,120]
[404851804,1770621042176,-500.0,0.00044356,120]
[404851805,1770621042185,-500.0,0.00044356,120]
[404851806,1770621042196,-500.0,0.00044356,120]
[404851807,1770621042206,-500.0,0.00044356,120]
[404851808,1770621042216,-500.0,0.00044356,120]
[404851809,1770621042225,-500.0,0.00044356,120]
[404851810,1770621042234,-500.0,0.00044356,120]
[404851812,1770621042244,-500.0,0.00044356,120]
[404851814,1770621042254,-518.83491766,0.00044356,120]
[404851815,1770621042266,-500.0,0.00044356,120]
[404851816,1770621042275,-377.5527005,0.00044356,120]
[404851817,1770621042284,-500.0,0.00044356,120]
[404851818,1770621042294,-500.0,0.00044356,120]
[404851819,1770621042303,-500.0,0.00044356,120]
[404851820,1770621042313,-500.0,0.00044356,120]
[404851821,1770621042322,-500.0,0.00044356,120]
[404851822,1770621042337,-500.0,0.00044356,120]
[404851823,1770621042346,-636.61228018,0.00044356,120]
[404851824,1770621042354,-500.0,0.00044356,120]
[404851825,1770621042363,-500.0,0.00044356,120]
[404851826,1770621042372,-500.0,0.00044356,30]
[404851827,1770621042381,-500.0,0.00044356,120]
[404851828,1770621042391,-500.0,0.00044356,30]
[404851829,1770621042400,-500.0,0.00044356,120]
[404851830,1770621042409,-500.0,0.00044356,30]
[404851831,1770621042418,-500.0,0.00044356,120]
[404851832,1770621042427,-500.0,0.00044356,30]
[404851833,1770621042436,-500.0,0.00044356,120]
[404851834,1770621042445,-500.0,0.00044356,30]
[404851835,1770621042455,-500.0,0.00044356,120]
[404851836,1770621042464,-500.0,0.00044356,30]
[404851837,1770621042474,-500.0,0.00044356,120]
[404851838,1770621042483,-500.0,0.00044356,30]
[404851839,1770621042493,-500.0,0.00044356,120]
[404851840,1770621042503,-500.0,0.00044356,30]
[404851841,1770621042512,-500.0,0.00044356,120]
[404851842,1770621042521,-509.18316104,0.00044356,30]
[404851843,1770621042530,-500.0,0.00044356,120]
[404851844,1770621042539,-500.0,0.00044356,120]
[404851845,1770621042548,-538.36607273,0.00044356,120]